fUST/lending_fUST_20251002
["ID","MTS","AMOUNT","RATE_DAILY","PERIOD"]
[388726903,1759338642132,-500.0,0.00019178,2]
[388726904,1759338642141,-2336.89,0.00019178,2]
[388726905,1759338642152,-500.0,0.00019178,2]
[388726906,1759338642161,-500.0,0.00019178,2]
[388726907,1759338642171,-441.85501196,0.00019178,2]
[388726908,1759338642180,-500.0,0.00019178,2]
[388726909,1759338642189,-500.0,0.00019178,2]
[388726910,1759338642199,-500.0,0.00019178,2]
[388726911,1759338642209,-593.72963419,0.00019178,2]
[388726912,1759338642218,-500.0,0.00019178,2]
[388726913,1759338642227,-500.0,0.00019178,2]
[388726914,1759338642237,-500.0,0.00019178,2]
[388726915,1759338642246,-500.0,0.00019178,2]
[388726916,1759338642255,-500.0,0.00019178,2]
[388726917,1759338642264,-500.0,0.00019178,2]
[388726918,1759338642273,-1169.91,0.00019178,2]
[388726919,1759338642282,-521.02,0.00019178,2]
[388726920,1759338642292,-440.0,0.00019178,2]
[388726921,1759338642301,-2575.73,0.00019178,2]
[388726922,1759338642311,-175.26,0.00019178,2]
[388726924,1759338642320,-559.55827896,0.00019178,2]
[388726926,1759338642329,-440.0,0.00019178,2]
[388726927,1759338642338,-500.0,0.00019178,2]
[388726928,1759338642347,-500.0,0.00019178,2]
[388726929,1759338642355,-500.0,0.00019178,2]
[388726930,1759338642364,-500.0,0.00019178,2]
[388726931,1759338642373,-500.0,0.00019178,2]
[388726932,1759338642382,-500.0,0.00019178,2]
[388726933,1759338642390,-500.0,0.00019178,2]
[388726934,1759338642399,-500.0,0.00019178,2]
[388726935,1759338642408,-500.0,0.00019178,2]
[388726936,1759338642417,-500.0,0.00019178,2]
[388726937,1759338642426,-1810.05,0.00019178,2]
[388726938,1759338642435,-249.44196569,0.00019178,2]
[388726939,1759338642445,-500.0,0.00019178,2]
[388726940,1759338642454,-3809.19804109,0.00019352,2]
[388726941,1759338642463,-500.0,0.00019452,2]
[388726942,1759338642472,-500.0,0.00019452,2]
[388726943,1759338642481,-500.0,0.00019452,2]
[388726944,1759338642491,-235.99,0.00019452,2]
[388726945,1759338642500,-500.0,0.00019452,2]
[388726946,1759338642510,-500.0,0.00019452,2]
[388726947,1759338642519,-460.0,0.00019452,2]
[388726948,1759338642528,-500.0,0.00019452,2]
[388726949,1759338642537,-269.66,0.00019452,2]
[388726950,1759338642545,-191.35,0.00019452,2]
[388726951,1759338642554,-500.0,0.00019452,2]
[388726952,1759338642563,-500.0,0.00019452,2]
[388726953,1759338642572,-500.0,0.00019452,2]
[388726954,1759338642581,-507.58,0.00019452,2]
[388726955,1759338642590,-287.28,0.00019452,2]
[388726956,1759338642599,-500.0,0.00019452,2]
[388726957,1759338642608,-500.0,0.00019452,2]
[388726958,1759338642618,-500.0,0.00019452,2]
[388726959,1759338642627,-198.01,0.00019452,2]
[388726960,1759338642636,-500.0,0.00019452,2]
[388726961,1759338642645,-547.73,0.00019452,2]
[388726962,1759338642654,-500.0,0.00019452,2]
[388726963,1759338642662,-401.01847724,0.00019452,2]
[388726964,1759338642671,-473.33838339,0.00019452,2]
[388726965,1759338642680,-402.27948387,0.00019452,2]
[388726966,1759338642689,-500.0,0.00019452,2]
[388726967,1759338642698,-500.0,0.00019452,2]
[388726968,1759338642708,-500.0,0.00019452,2]
[388726969,1759338642717,-500.0,0.00019452,2]
[388726970,1759338642726,-500.0,0.00019452,2]
[388726971,1759338642735,-500.0,0.00019452,2]
[388726972,1759338642743,-500.0,0.00019452,2]
[388726973,1759338642752,-530.9,0.00019452,2]
[388726974,1759338642761,-500.0,0.00019452,2]
[388726975,1759338642770,-500.0,0.00019452,2]
[388726976,1759338642779,-500.0,0.00019452,2]
[388726977,1759338642788,-500.0,0.00019452,2]
[388726978,1759338642797,-380.0,0.00019452,2]
[388726979,1759338642805,-500.0,0.00019452,2]
[388726980,1759338642814,-500.0,0.00019452,2]
[388726981,1759338642823,-500.0,0.00019452,2]
[388726982,1759338642832,-500.0,0.00019452,2]
[388726983,1759338642841,-500.0,0.00019452,2]
[388726984,1759338642850,-767.28,0.00019452,2]
[388726985,1759338642858,-500.0,0.00019452,2]
[388726986,1759338642867,-569.16249108,0.00019452,2]
[388726987,1759338642876,-500.0,0.00019452,2]
[388726988,1759338642885,-500.0,0.00019452,2]
[388726989,1759338642894,-500.0,0.00019452,2]
[388726990,1759338642903,-500.0,0.00019452,2]
[388726991,1759338642911,-420.0,0.00019452,2]
[388726992,1759338642920,-500.0,0.00019452,2]
[388726993,1759338642930,-351.16158982,0.00019452,2]
[388726994,1759338642943,-500.0,0.00019452,2]
[388726995,1759338642952,-198.54,0.00019452,2]
[388726996,1759338642961,-249.45,0.00019452,2]
[388726997,1759338642970,-395.0633541,0.00019452,2]
[388726998,1759338642981,-500.0,0.00019452,2]
[388726999,1759338642990,-500.0,0.00019452,2]
[388727000,1759338642999,-500.0,0.00019452,2]
[388727001,1759338643009,-669.43,0.00019452,2]
[388727002,1759338643018,-500.0,0.00019452,2]
[388727003,1759338643027,-500.0,0.00019452,2]
[388727004,1759338643036,-500.0,0.00019452,2]
[388727005,1759338643047,-755.67,0.00019452,2]
[388727006,1759338643057,-500.0,0.00019452,2]
[388727007,1759338643068,-500.0,0.00019452,2]
[388727008,1759338643077,-500.0,0.00019452,2]
[388727009,1759338643087,-500.0,0.00019452,2]
[388727010,1759338643097,-500.0,0.00019452,2]
[388727012,1759338643106,-302.59,0.00019452,2]
[388727014,1759338643116,-500.0,0.00019452,2]
[388727016,1759338643125,-500.0,0.00019452,2]
[388727018,1759338643135,-500.0,0.00019452,2]
[388727021,1759338643144,-500.0,0.00019452,2]
[388727023,1759338643153,-500.0,0.00019452,2]
[388727024,1759338643163,-500.0,0.00019452,2]
[388727025,1759338643172,-500.0,0.00019452,2]
[388727027,1759338643182,-912.45,0.00019452,2]
[388727029,1759338643191,-500.0,0.00019452,2]
[388727031,1759338643201,-500.0,0.00019452,2]
[388727032,1759338643213,-423.87822302,0.00019452,2]
[388727033,1759338643223,-500.0,0.00019452,2]
[388727035,1759338643233,-517.43,0.00019452,2]
[388727038,1759338643242,-460.0,0.00019452,2]
[388727041,1759338643251,-500.0,0.00019452,2]
[388727043,1759338643260,-500.0,0.00019452,2]
[388727045,1759338643271,-719.71,0.00019452,2]
[388727048,1759338643282,-802.46,0.00019452,2]
[388727050,1759338643292,-500.0,0.00019452,2]
[388727052,1759338643304,-500.0,0.00019452,2]
[388727053,1759338643314,-520.92,0.00019452,2]
[388727056,1759338643325,-500.0,0.00019452,2]
[388727058,1759338643336,-500.0,0.00019452,2]
[388727060,1759338643346,-555.10985357,0.00019452,2]
[388727061,1759338643356,-500.0,0.00019452,2]
[388727063,1759338643366,-500.0,0.00019452,2]
[388727065,1759338643375,-392.35,0.00019452,2]
[388727066,1759338643385,-500.0,0.00019452,2]
[388727067,1759338643394,-500.0,0.00019452,2]
[388727069,1759338643404,-500.0,0.00019452,2]
[388727070,1759338643414,-500.0,0.00019452,2]
[388727072,1759338643422,-498.13,0.00019452,2]
[388727074,1759338643432,-500.0,0.00019452,2]
[388727076,1759338643441,-500.0,0.00019452,2]
[388727078,1759338643451,-500.0,0.00019452,2]
[388727080,1759338643668,-500.0,0.00019452,2]
[388727082,1759338643677,-500.0,0.00019452,2]
[388727090,1759338643841,-500.0,0.00019452,2]
[388727091,1759338643850,-1490.63,0.00019452,2]
[388727092,1759338643860,-500.0,0.00019452,2]
[388727093,1759338643869,-500.0,0.00019452,2]
[388727094,1759338643878,-532.31,0.00019452,2]
[388727095,1759338643887,-500.0,0.00019452,2]
[388727096,1759338643896,-500.0,0.00019452,2]
[388727098,1759338643905,-798.32,0.00019452,2]
[388727100,1759338643914,-1983.5,0.00019452,2]
[388727102,1759338643924,-500.0,0.00019452,2]
[388727104,1759338643935,-704.92,0.00019452,2]
[388727105,1759338643946,-500.0,0.00019452,2]
[388727106,1759338643956,-500.0,0.00019452,2]
[388727107,1759338643965,-500.0,0.00019452,2]
[388727108,1759338643974,-500.0,0.00019452,2]
[388727109,1759338643985,-500.0,0.00019452,2]
[388727110,1759338643994,-777.53,0.00019452,2]
[388727111,1759338644003,-500.0,0.00019452,2]
[388727112,1759338644014,-500.0,0.00019452,2]
[388727113,1759338644024,-1142.41,0.00019452,2]
[388727114,1759338644033,-500.0,0.00019452,2]
[388727115,1759338644043,-500.0,0.00019452,2]
[388727116,1759338644052,-500.0,0.00019452,2]
[388727117,1759338644062,-500.0,0.00019452,2]
[388727118,1759338644073,-500.0,0.00019452,2]
[388727119,1759338644082,-622.32,0.00019452,2]
[388727120,1759338644092,-1074.91,0.00019452,2]
[388727121,1759338644102,-500.0,0.00019452,2]
[388727122,1759338644112,-500.0,0.00019452,2]
[388727123,1759338644121,-500.0,0.00019452,2]
[388727124,1759338644131,-500.0,0.00019452,2]
[388727125,1759338644140,-500.0,0.00019452,2]
[388727126,1759338644149,-500.0,0.00019452,2]
[388727127,1759338644158,-500.0,0.00019452,2]
[388727128,1759338644167,-500.0,0.00019452,2]
[388727129,1759338644177,-500.0,0.00019452,2]
[388727130,1759338644186,-4143.91,0.00019452,2]
[388727131,1759338644195,-500.0,0.00019452,2]
[388727132,1759338644204,-500.0,0.00019452,2]
[388727133,1759338644213,-931.36,0.00019452,2]
[388727134,1759338644222,-730.65,0.00019452,2]
[388727135,1759338644230,-500.0,0.00019452,2]
[388727136,1759338644239,-1892.91,0.00019452,2]
[388727137,1759338644248,-500.0,0.00019452,2]
[388727138,1759338644257,-500.0,0.00019452,2]
[388727139,1759338644265,-604.63,0.00019452,2]
[388727140,1759338644274,-635.29,0.00019452,2]
[388727141,1759338644283,-539.85,0.00019452,2]
[388727142,1759338644292,-497.67363562,0.00019452,2]
[388727143,1759338644301,-1715.44,0.00019452,2]
[388727144,1759338644309,-500.0,0.00019452,2]
[388727145,1759338644318,-500.0,0.00019452,2]
[388727146,1759338644327,-500.0,0.00019452,2]
[388727147,1759338644336,-500.0,0.00019452,2]
[388727148,1759338644346,-500.0,0.00019452,2]
[388727149,1759338644354,-539.87,0.00019452,2]
[388727150,1759338644363,-553.39,0.00019452,2]
[388727151,1759338644372,-954.55,0.00019452,2]
[388727152,1759338644381,-500.0,0.00019452,2]
[388727153,1759338644390,-380.0,0.00019452,2]
[388727154,1759338644399,-500.0,0.00019452,2]
[388727155,1759338644408,-500.0,0.00019452,2]
[388727156,1759338644417,-500.0,0.00019452,2]
[388727157,1759338644427,-500.0,0.00019452,2]
[388727158,1759338644436,-500.0,0.00019452,2]
[388727159,1759338644445,-500.0,0.00019452,2]
[388727160,1759338644455,-500.0,0.00019452,2]
[388727161,1759338644464,-500.0,0.00019452,2]
[388727162,1759338644473,-500.0,0.00019452,2]
[388727163,1759338644483,-500.0,0.00019452,2]
[388727164,1759338644492,-420.0,0.00019452,2]
[388727165,1759338644505,-567.2,0.00019452,2]
[388727166,1759338644514,-502.6,0.00019452,2]
[388727167,1759338644523,-500.0,0.00019452,2]
[388727168,1759338644533,-500.0,0.00019452,2]
[388727169,1759338644541,-672.64,0.00019452,2]
[388727170,1759338644551,-471.89830317,0.00019452,2]
[388727171,1759338644560,-500.0,0.00019452,2]
[388727172,1759338644569,-500.0,0.00019452,2]
[388727173,1759338644578,-500.0,0.00019452,2]
[388727174,1759338644587,-500.0,0.00019452,2]
[388727175,1759338644596,-500.0,0.00019452,2]
[388727176,1759338644605,-1329.93,0.00019452,2]
[388727178,1759338644614,-500.0,0.00019452,2]
[388727180,1759338644623,-888.22,0.00019452,2]
[388727182,1759338644632,-500.0,0.00019452,2]
[388727183,1759338644641,-500.0,0.00019452,2]
[388727184,1759338644650,-500.0,0.00019452,2]
[388727185,1759338644659,-885.37,0.00019452,2]
[388727186,1759338644668,-500.0,0.00019452,2]
[388727187,1759338644677,-258.00470056,0.00019452,2]
[388727188,1759338644687,-500.0,0.00019452,2]
[388727189,1759338644697,-500.0,0.00019452,2]
[388727190,1759338644706,-797.47,0.00019452,2]
[388727191,1759338644716,-500.0,0.00019452,2]
[388727192,1759338644725,-460.0,0.00019452,2]
[388727193,1759338644735,-500.0,0.00019452,2]
[388727194,1759338644744,-500.0,0.00019452,2]
[388727195,1759338644753,-500.0,0.00019452,2]
[388727196,1759338644762,-420.0,0.00019452,2]
[388727197,1759338644771,-500.0,0.00019452,2]
[388727198,1759338644780,-500.0,0.00019452,2]
[388727199,1759338644790,-1765.36,0.00019452,2]
[388727200,1759338644799,-562.34,0.00019452,2]
[388727201,1759338644809,-500.0,0.00019452,2]
[388727202,1759338644818,-576.21,0.00019452,2]
[388727203,1759338644827,-687.77,0.00019452,2]
[388727204,1759338644836,-646.32,0.00019452,2]
[388727205,1759338644845,-500.0,0.00019452,2]
[388727206,1759338644854,-500.0,0.00019452,2]
[388727207,1759338644863,-634.17,0.00019452,2]
[388727208,1759338644872,-646.63,0.00019452,2]
[388727210,1759338644881,-500.0,0.00019452,2]
[388727211,1759338644891,-500.0,0.00019452,2]
[388727212,1759338644899,-381.08212739,0.00019452,2]
[388727214,1759338644908,-2336.89,0.00019452,2]
[388727216,1759338644917,-500.0,0.00019452,2]
[388727217,1759338644926,-500.0,0.00019452,2]
[388727218,1759338644938,-500.0,0.00019452,2]
[388727219,1759338644947,-500.0,0.00019452,2]
[388727220,1759338644957,-500.0,0.00019452,2]
[388727221,1759338644967,-400.0,0.00019452,2]
[388727222,1759338644977,-500.0,0.00019452,2]
[388727223,1759338644986,-500.0,0.00019452,2]
[388727224,1759338644995,-500.0,0.00019452,2]
[388727225,1759338645003,-500.0,0.00019452,2]
[388727226,1759338645014,-1169.91,0.00019452,2]
[388727227,1759338645023,-521.02,0.00019452,2]
[388727228,1759338645032,-2575.73,0.00019452,2]
[388727229,1759338645042,-175.2703944,0.00019452,2]
[388727230,1759338645051,-500.0,0.00019452,2]
[388727231,1759338645060,-500.0,0.00019452,2]
[388727232,1759338645071,-500.0,0.00019452,2]
[388727233,1759338645081,-500.0,0.00019452,2]
[388727234,1759338645091,-500.0,0.00019452,2]
[388727235,1759338645100,-500.0,0.00019452,2]
[388727236,1759338645109,-500.0,0.00019452,2]
[388727237,1759338645118,-496.53,0.00019452,2]
[388727238,1759338645128,-500.0,0.00019452,2]
[388727239,1759338645137,-582.67825345,0.00019473,2]
[388727240,1759338645146,-500.0,0.00019473,2]
[388727241,1759338645155,-500.0,0.00019473,2]
[388727242,1759338645164,-500.0,0.00019473,2]
[388727243,1759338645173,-500.0,0.00019473,2]
[388727244,1759338645182,-500.0,0.00019473,2]
[388727245,1759338645191,-500.0,0.00019473,2]
[388727246,1759338645200,-1445.5092195,0.00019476,2]
[388727247,1759338645210,-300.0,0.00019558,2]
[388727248,1759338645220,-300.0,0.00019558,2]
[388727249,1759338645229,-300.0,0.00019558,2]
[388727250,1759338645238,-300.0,0.00019558,2]
[388727251,1759338645247,-300.0,0.00019558,2]
[388727252,1759338645256,-300.0,0.00019558,2]
[388727253,1759338645265,-300.0,0.00019558,2]
[388727254,1759338645275,-300.0,0.00019558,2]
[388727255,1759338645284,-300.0,0.00019558,2]
[388727256,1759338645293,-300.0,0.00019558,2]
[388727257,1759338645302,-300.0,0.00019558,2]
[388727258,1759338645312,-300.0,0.00019558,2]
[388727259,1759338645321,-300.0,0.00019558,2]
[388727260,1759338645330,-300.0,0.00019558,2]
[388727261,1759338645339,-300.0,0.00019558,2]
[388727262,1759338645348,-600.0,0.0001956,2]
[388727263,1759338645357,-3809.19804105,0.00019614,2]
[388727264,1759338645367,-2084.49075022,0.0001972,2]
[388727265,1759338645375,-500.0,0.00019726,2]
[388727266,1759338645384,-500.0,0.00019726,2]
[388727267,1759338645394,-500.0,0.00019726,2]
[388727268,1759338645403,-500.0,0.00019726,2]
[388727269,1759338645413,-500.0,0.00019726,2]
[388727270,1759338645421,-500.0,0.00019726,2]
[388727271,1759338645430,-500.0,0.00019726,2]
[388727272,1759338645439,-500.0,0.00019726,2]
[388727273,1759338645451,-500.0,0.00019726,2]
[388727274,1759338645464,-500.0,0.00019726,2]
[388727275,1759338645476,-500.0,0.00019726,2]
[388727276,1759338645487,-500.0,0.00019726,2]
[388727277,1759338645499,-500.0,0.00019726,2]
[388727278,1759338645515,-496.18,0.00019726,2]
[388727279,1759338645524,-500.0,0.00019726,2]
[388727280,1759338645534,-500.0,0.00019726,2]
[388727281,1759338645546,-379.19669334,0.00019726,2]
[388727282,1759338645557,-500.0,0.00019726,2]
[388727283,1759338645567,-500.0,0.00019726,2]
[388727284,1759338645578,-500.0,0.00019726,2]
[388727285,1759338645589,-500.0,0.00019726,2]
[388727286,1759338645602,-500.0,0.00019726,2]
[388727287,1759338645614,-500.0,0.00019726,2]
[388727288,1759338645625,-500.0,0.00019726,2]
[388727289,1759338645637,-480.0,0.00019726,2]
[388727290,1759338645649,-500.0,0.00019726,2]
[388727291,1759338645662,-500.0,0.00019726,2]
[388727292,1759338645673,-308.93,0.00019726,2]
[388727293,1759338645684,-500.0,0.00019726,2]
[388727294,1759338645698,-767.28,0.00019726,2]
[388727295,1759338645711,-500.0,0.00019726,2]
[388727296,1759338645723,-500.0,0.00019726,2]
[388727297,1759338645734,-500.0,0.00019726,2]
[388727298,1759338645745,-500.0,0.00019726,2]
[388727299,1759338645758,-500.0,0.00019726,2]
[388727300,1759338645770,-500.0,0.00019726,2]
[388727301,1759338645780,-500.0,0.00019726,2]
[388727302,1759338645791,-500.0,0.00019726,2]
[388727303,1759338645801,-598.54,0.00019726,2]
[388727304,1759338645811,-669.43,0.00019726,2]
[388727305,1759338645820,-480.0,0.00019726,2]
[388727306,1759338645831,-500.0,0.00019726,2]
[388727307,1759338645841,-500.0,0.00019726,2]
[388727308,1759338645853,-755.67,0.00019726,2]
[388727309,1759338645865,-561.65,0.00019726,2]
[388727310,1759338645876,-500.0,0.00019726,2]
[388727311,1759338645888,-500.0,0.00019726,2]
[388727312,1759338645900,-496.63010083,0.00019726,2]
[388727313,1759338645914,-500.0,0.00019726,2]
[388727314,1759338645926,-480.0,0.00019726,2]
[388727315,1759338645939,-500.0,0.00019726,2]
[388727316,1759338645951,-500.0,0.00019726,2]
[388727317,1759338645963,-500.0,0.00019726,2]
[388727318,1759338645975,-912.45,0.00019726,2]
[388727319,1759338645985,-385.35,0.00019726,2]
[388727320,1759338645995,-500.0,0.00019726,2]
[388727321,1759338646007,-500.0,0.00019726,2]
[388727322,1759338646021,-500.0,0.00019726,2]
[388727323,1759338646032,-500.0,0.00019726,2]
[388727324,1759338646042,-719.71,0.00019726,2]
[388727325,1759338646055,-802.46,0.00019726,2]
[388727326,1759338646066,-500.0,0.00019726,2]
[388727328,1759338646079,-500.0,0.00019726,2]
[388727329,1759338646089,-500.0,0.00019726,2]
[388727330,1759338646100,-500.0,0.00019726,2]
[388727331,1759338646111,-500.0,0.00019726,2]
[388727332,1759338646123,-465.66,0.00019726,2]
[388727333,1759338646134,-500.0,0.00019726,2]
[388727334,1759338646151,-298.74,0.00019726,2]
[388727335,1759338646162,-500.0,0.00019726,2]
[388727336,1759338646172,-500.0,0.00019726,2]
[388727337,1759338646184,-292.37,0.00019726,2]
[388727338,1759338646196,-500.0,0.00019726,2]
[388727339,1759338646206,-1490.63,0.00019726,2]
[388727340,1759338646216,-500.0,0.00019726,2]
[388727341,1759338646227,-500.0,0.00019726,2]
[388727342,1759338646238,-532.31,0.00019726,2]
[388727343,1759338646250,-500.0,0.00019726,2]
[388727344,1759338646260,-798.32,0.00019726,2]
[388727345,1759338646272,-1983.5,0.00019726,2]
[388727346,1759338646284,-500.0,0.00019726,2]
[388727348,1759338646294,-704.92,0.00019726,2]
[388727350,1759338646305,-463.89373646,0.00019726,2]
[388727352,1759338646315,-480.0,0.00019726,2]
[388727353,1759338646326,-500.0,0.00019726,2]
[388727354,1759338646337,-777.53,0.00019726,2]
[388727355,1759338646347,-372.49,0.00019726,2]
[388727356,1759338646357,-260.74,0.00019726,2]
[388727357,1759338646367,-1142.41,0.00019726,2]
[388727358,1759338646377,-500.0,0.00019726,2]
[388727359,1759338646388,-500.0,0.00019726,2]
[388727361,1759338646398,-500.0,0.00019726,2]
[388727362,1759338646408,-500.0,0.00019726,2]
[388727364,1759338646420,-500.0,0.00019726,2]
[388727365,1759338646430,-622.32,0.00019726,2]
[388727366,1759338646439,-1074.91,0.00019726,2]
[388727367,1759338646449,-420.0,0.00019726,2]
[388727368,1759338646460,-500.0,0.00019726,2]
[388727369,1759338646471,-500.0,0.00019726,2]
[388727370,1759338646482,-500.0,0.00019726,2]
[388727371,1759338646493,-321.74,0.00019726,2]
[388727372,1759338646503,-500.0,0.00019726,2]
[388727373,1759338646514,-500.0,0.00019726,2]
[388727374,1759338646525,-500.0,0.00019726,2]
[388727375,1759338646535,-4143.91,0.00019726,2]
[388727376,1759338646545,-500.0,0.00019726,2]
[388727377,1759338646555,-500.0,0.00019726,2]
[388727378,1759338646565,-931.36,0.00019726,2]
[388727379,1759338646575,-730.65,0.00019726,2]
[388727380,1759338646587,-500.0,0.00019726,2]
[388727381,1759338646598,-1892.91,0.00019726,2]
[388727382,1759338646613,-500.0,0.00019726,2]
[388727383,1759338646623,-604.63,0.00019726,2]
[388727384,1759338646634,-635.29,0.00019726,2]
[388727385,1759338646644,-539.85,0.00019726,2]
[388727386,1759338646655,-1715.44,0.00019726,2]
[388727387,1759338646666,-500.0,0.00019726,2]
[388727388,1759338646677,-500.0,0.00019726,2]
[388727389,1759338646688,-500.0,0.00019726,2]
[388727390,1759338646699,-500.0,0.00019726,2]
[388727391,1759338646711,-500.0,0.00019726,2]
[388727392,1759338646722,-954.55,0.00019726,2]
[388727393,1759338646733,-480.0,0.00019726,2]
[388727394,1759338646744,-500.0,0.00019726,2]
[388727395,1759338646754,-311.61065171,0.00019726,2]
[388727396,1759338646765,-572.51,0.00019726,2]
[388727397,1759338646776,-500.0,0.00019726,2]
[388727398,1759338646786,-500.0,0.00019726,2]
[388727399,1759338646797,-500.0,0.00019726,2]
[388727400,1759338646808,-500.0,0.00019726,2]
[388727401,1759338646820,-500.0,0.00019726,2]
[388727402,1759338646831,-500.0,0.00019726,2]
[388727403,1759338646842,-567.2,0.00019726,2]
[388727404,1759338646854,-502.6,0.00019726,2]
[388727405,1759338646864,-440.0,0.00019726,2]
[388727407,1759338646875,-500.0,0.00019726,2]
[388727408,1759338646885,-672.64,0.00019726,2]
[388727409,1759338646895,-500.0,0.00019726,2]
[388727410,1759338646906,-605.8063914,0.00019726,2]
[388727411,1759338646916,-500.0,0.00019726,2]
[388727413,1759338646927,-500.0,0.00019726,2]
[388727414,1759338646940,-500.0,0.00019726,2]
[388727416,1759338646950,-1329.93,0.00019726,2]
[388727418,1759338646961,-500.0,0.00019726,2]
[388727419,1759338646972,-888.22,0.00019726,2]
[388727420,1759338646984,-500.0,0.00019726,2]
[388727421,1759338646994,-500.0,0.00019726,2]
[388727422,1759338647004,-885.37,0.00019726,2]
[388727423,1759338647017,-500.0,0.00019726,2]
[388727424,1759338647027,-500.0,0.00019726,2]
[388727425,1759338647038,-797.47,0.00019726,2]
[388727426,1759338647048,-500.0,0.00019726,2]
[388727427,1759338647059,-500.0,0.00019726,2]
[388727428,1759338647070,-500.0,0.00019726,2]
[388727429,1759338647080,-500.0,0.00019726,2]
[388727430,1759338647091,-500.0,0.00019726,2]
[388727431,1759338647101,-1765.36,0.00019726,2]
[388727432,1759338647112,-562.34,0.00019726,2]
[388727433,1759338647123,-330.59,0.00019726,2]
[388727434,1759338647135,-576.21,0.00019726,2]
[388727435,1759338647146,-687.77,0.00019726,2]
[388727436,1759338647156,-646.32,0.00019726,2]
[388727437,1759338647167,-500.0,0.00019726,2]
[388727438,1759338647178,-500.0,0.00019726,2]
[388727439,1759338647189,-634.17,0.00019726,2]
[388727440,1759338647199,-646.63,0.00019726,2]
[388727441,1759338647210,-500.0,0.00019726,2]
[388727442,1759338647221,-500.0,0.00019726,2]
[388727443,1759338647231,-2336.89,0.00019726,2]
[388727444,1759338647242,-500.0,0.00019726,2]
[388727445,1759338647252,-500.0,0.00019726,2]
[388727446,1759338647263,-172.55651801,0.00019726,2]
[388727447,1759338647274,-500.0,0.00019726,2]
[388727448,1759338647284,-500.0,0.00019726,2]
[388727449,1759338647295,-500.0,0.00019726,2]
[388727450,1759338647304,-1169.91,0.00019726,2]
[388727451,1759338647313,-521.02,0.00019726,2]
[388727452,1759338647323,-2575.73,0.00019726,2]
[388727453,1759338647492,-500.0,0.00019726,2]
[388727454,1759338647538,-500.0,0.00019726,2]
[388727455,1759338647550,-500.0,0.00019726,2]
[388727456,1759338647559,-500.0,0.00019726,2]
[388727457,1759338647568,-500.0,0.00019726,2]
[388727458,1759338647577,-329.89,0.00019756,2]
[388727459,1759338647587,-479.73752007,0.00019873,2]
[388727460,1759338647596,-501.47345628,0.00019873,2]
[388727461,1759338647605,-500.0,0.00019873,2]
[388727462,1759338647614,-500.0,0.00019873,2]
[388727463,1759338647624,-500.0,0.00019873,2]
[388727464,1759338647634,-500.0,0.00019873,2]
[388727465,1759338647643,-500.0,0.00019873,2]